[Event "1st Sales Oliveira Masters 2022"]
[Site "Sales Oliveira"]
[Date "2022.06.12"]
[Round "8.2"]
[White "Gemy, Jose Daniel"]
[Black "Labussiere, Victor"]
[Result "1-0"]
[ECO "B22"]
[WhiteElo "2367"]
[BlackElo "2349"]
[Annotator "TA"]
[PlyCount "61"]
[EventDate "2022.05.30"]
[EventType "swiss"]
[EventCountry "BRA"]
[SourceTitle "playchess.com"]
[Source "ChessBase"]
[SourceQuality "1"]
[TimeControl "40/5400+30:1800+30"]

{[%evp 15,61,18,18,-13,0,-66,9,0,0,-16,-14,-26,-36,-27,12,0,14,6,32,0,0,0,0,-17,-5,-43,-10,-29,-36,-92,45,-8,77,72,182,175,267,223,254,252,227,0,0,14,920,958,29998,29999]} 1. e4 {[%emt 0:00:01]} c5 {[%emt 0:02:08]} 2. Nf3 {[%emt 0:00:07]} Nc6 {[%emt 0:00:36]} 3. c3 {[%emt 0:05:05][%cal Bc2c3,Bc3d4,Bd4d5][%mdl 32]} Nf6 {[%emt 0:00:26]} 4. e5 {[%emt 0:00:06]} Nd5 {[%emt 0:00:03]} 5. d4 {[%emt 0:00:05]} cxd4 {[%emt 0:00:10]} 6. Bc4 {[%emt 0:01:01]} Nb6 {[%emt 0:00:10]} 7. Bb3 {[%emt 0:00:16]} g6 {[%emt 0:00:05]} 8. cxd4 {[%emt 0:00:29]} Bg7 {[%emt 0:00:04]} 9. h4 {[%emt 0:03:30][%cal Bh2h4,Bh4h5][%mdl 32] B22: Sicilian: 2 c3.} d6 {[%emt 0:10:05][%cal Rd6e5]} 10. e6 {[%emt 0:00:44]} (10. Ng5 $11 e6 11. f4 (11. Qf3 O-O $17)) 10... fxe6 {[%emt 0:03:39]} (10... Bxe6 $15 11. Bxe6 (11. d5 $2 Nxd5 12. O-O Nc7 $19) 11... fxe6) 11. h5 {[%emt 0:02:26] The position is equal.} e5 {[%emt 0:00:22] [#]} 12. d5 $146 {[%emt 0:04:40]} ({Predecessor:} 12. hxg6 hxg6 13. Rxh8+ Bxh8 14. dxe5 Nxe5 15. Nxe5 Bxe5 16. Nd2 Qd7 17. Nf3 Bf6 18. Be3 {0-1 (31) Gerard,A (1837)-Grobler,D (2247) ICCF email 2018}) 12... Nd4 {[%emt 0:01:54]} 13. Nxd4 {[%emt 0:05:24]} exd4 {[%emt 0:00:46]} 14. Nd2 {[%emt 0:01:54]} Bf5 {[%emt 0:05:14] Inhibits Ne4.} 15. g4 {[%emt 0:00:54][%mdl 1024] Hoping for h6. White has compensation.} Bd7 {[%emt 0:07:17]} 16. a4 {[%emt 0:20:12] Threatens to win with hxg6.} a5 {[%emt 0:11:59]} (16... Qc8 $5 {[%cal Rd7g4]} 17. f3 a5 $11) 17. Ne4 {[%emt 0:17:40] Strongly threatening hxg6.} Qc8 {[%emt 0:03:18]} 18. f3 {[%emt 0:09:19]} gxh5 {[%emt 0:09:54]} 19. Bg5 {[%emt 0:06:56]} O-O {[%emt 0:04:23][%cal Rh5g4]} (19... hxg4 $6 20. Rc1 Qb8 21. fxg4 $17) 20. Rxh5 {[%emt 0:05:51]} Qe8 {[%emt 0:01:39] aiming for ...Qf7.} (20... Be8 $5 {[%cal Re8h5]} 21. Rh3 Bg6 $15) 21. Rh3 {[%emt 0:06:19]} (21. Bd2 $5 {[%cal Rb3c2]}) 21... Rc8 {[%emt 0:01:57]} 22. Qd3 {[%emt 0:02:59]} (22. Bc2 $1 $15) 22... Nxa4 {[%emt 0:14:00]} ({Black should play} 22... Qg6 $17 23. Ra3 (23. Bxe7 $2 Rfe8 $19) 23... Rf7) 23. Rxh7 {[%emt 0:02:06]} Bb5 {[%emt 0:07:46] [#]} (23... Nxb2 $11 {keeps the balance.} 24. Rxg7+ Kxg7 25. Qxd4+ Kg8 26. Qxb2 Rxf3) 24. Rxg7+ $1 $16 {[%emt 0:00:09][%mdl 64] Remove Defender, Decoy} Kxg7 {[%emt 0:00:01]} 25. Qxd4+ {[%emt 0:00:06]} Kg6 {[%emt 0:00:12]} (25... Kg8 {was called for.} 26. Bh6 (26. Rxa4 Rxf3 27. Be3 Bxa4 $17) 26... Rf6 27. Nxf6+ exf6+ 28. Kf2 Qg6 29. Bxa4 Qxh6 30. Bxb5 Rc2+ 31. Ke1 Qh1+ 32. Bf1 Qxf3) 26. f4 $18 {[%emt 0:03:55]} (26. Rxa4 Rxf3 27. Nc3 (27. Rxa5 $2 Rxb3 28. Nc3 Rc4 $19) 27... Kxg5 $11) (26. Bxa4 $6 Bxa4 27. Rxa4 Rxf3 $16) 26... Rh8 {[%emt 0:01:22] [#] And now ...Rh1+ would win.} 27. Ng3 {[%emt 0:01:00] Inhibits Rh1+.} (27. f5+ Kf7 28. Bxa4 (28. Rxa4 Rh1+ 29. Kf2 Bxa4 $11) 28... Rh1+ 29. Kf2 Rxa1 $14) 27... Kf7 {[%emt 0:14:30] [#] ...Nc5 is the strong threat.} 28. Nf5 $2 $40 {[%emt 0:00:39][%mdl 128] White attacks.} ({And not} 28. Rxa4 Rc1+ 29. Kd2 Qc8 30. Bxe7 (30. Nf5 $2 Rh2+ 31. Ke3 Re2+ 32. Kf3 Rf1+ 33. Kg3 Qc1 $19) 30... Rh2+ 31. Ke3 Re1+ 32. Kf3 Rxe7 $11) (28. Bxa4 $6 Bxa4 29. Nh5 (29. Qxa4 $2 Rc1+ 30. Kd2 Rxa1 $19) 29... e5 30. fxe5 (30. Qxa4 exf4+ 31. Kd1 Qe5 $14) 30... Qxe5+ 31. Qxe5 dxe5 32. Rxa4 Rc5 $14) (28. Nh5 $1 $18 Rxh5 29. gxh5) 28... Rh1+ $11 {[%emt 0:00:00]} 29. Kf2 {[%emt 0:00:30][%csl Gf5][%cal Rd4g7] Chess con chili.} Qh8 {[%emt 0:00:00][%mdl 8192] Against Qg7+} 30. Rxh1 $18 {[%emt 0:00:27][%mdl 64] Deflection} Qxh1 {[%emt 0:00:58]} 31. Qg7+ {[%emt 0:00:03] Weighted Error Value: White=0.30/Black=0.60} 1-0

[Event "1st Sales Oliveira Masters 2022"]
[Site "Sales Oliveira"]
[Date "2022.06.12"]
[Round "8.3"]
[White "Born, Carlos Rodrigo"]
[Black "Coro, Lucas"]
[Result "1-0"]
[ECO "A08"]
[WhiteElo "2292"]
[BlackElo "2398"]
[Annotator "TA"]
[PlyCount "89"]
[EventDate "2022.05.30"]
[EventType "swiss"]
[EventCountry "BRA"]
[SourceTitle "playchess.com"]
[Source "ChessBase"]
[SourceQuality "1"]
[TimeControl "40/5400+30:1800+30"]

{[%evp 15,89,0,0,-10,0,-20,-4,-29,-35,-33,-13,-21,-20,-8,-9,-15,0,0,0,4,14,15,39,26,37,0,0,0,0,-18,-16,-13,-23,-47,-54,-35,-41,-51,-27,-56,-22,-86,-91,-98,0,0,0,0,0,0,0,0,0,0,92,87,105,41,43,35,40,0,0,0,0,0,0,0,19,19,19,19,545,545,467,356]} 1. Nf3 {[%emt 0:00:22]} Nf6 {[%emt 0:02:17]} 2. g3 {[%emt 0:00:07]} g6 {[%emt 0:00:13]} 3. Bg2 {[%emt 0:00:03]} Bg7 {[%emt 0:00:10]} 4. O-O {[%emt 0:00:03]} O-O {[%emt 0:00:12]} 5. d3 {[%emt 0:00:20]} d5 {[%emt 0:02:20]} 6. Nbd2 {[%emt 0:01:03]} c5 {[%emt 0:04:07]} 7. e4 {[%emt 0:01:14]} Nc6 {[%emt 0:00:47]} 8. exd5 {[%emt 0:05:28]} Nxd5 {[%emt 0:00:18]} 9. Re1 {[%emt 0:00:04] A08: King's Indian Attack.} b6 {[%emt 0:02:51]} 10. c3 {[%emt 0:18:45]} Bb7 {[%emt 0:01:33]} 11. Nb3 {[%emt 0:02:26] [#] The position is equal.} Qc7 $146 {[%emt 0:15:43]} ({Predecessor:} 11... e5 12. a4 Qd7 13. Nbd2 Rfe8 14. Nc4 h6 15. Qb3 Rab8 16. a5 Qc7 17. axb6 axb6 {1-0 (55) Popovic,D (2553)-Goczo,M (2227) Cappelle la Grande 2014}) 12. Qe2 {[%emt 0:06:09]} e6 {[%emt 0:03:56]} 13. d4 {[%emt 0:01:50]} cxd4 {[%emt 0:05:36]} 14. Nbxd4 {[%emt 0:00:15]} Nxd4 {[%emt 0:00:10]} 15. Nxd4 {[%emt 0:00:03][%cal Bf3d4,Bd4c2,Bc2b4][%mdl 32]} a6 {[%emt 0:08:08]} 16. a4 {[%emt 0:08:25]} Rae8 {[%emt 0:02:08]} 17. Nc2 {[%emt 0:03:46]} e5 {[%emt 0:01:57]} 18. Rd1 {[%emt 0:01:34]} Ne7 {[%emt 0:02:50]} 19. Bxb7 {[%emt 0:00:27]} Qxb7 {[%emt 0:00:08]} 20. Nb4 {[%emt 0:00:20]} a5 {[%emt 0:00:48]} 21. Nc2 {[%emt 0:01:44]} f5 {[%emt 0:02:29][%cal Bf7f5,Bf5f4][%mdl 32]} 22. Na3 {[%emt 0:01:59]} f4 {[%emt 0:01:02]} 23. Nb5 {[%emt 0:00:13]} Nf5 {[%emt 0:01:09]} 24. Nd6 {[%emt 0:07:34]} Nxd6 {[%emt 0:01:26]} 25. Rxd6 {[%emt 0:00:03]} Qc7 {[%emt 0:13:34]} 26. Rd1 {[%emt 0:11:58]} Qc8 {[%emt 0:00:54]} 27. Ra3 {[%emt 0:02:11]} Qe6 {[%emt 0:11:20]} 28. Re1 {[%emt 0:01:37]} (28. c4 $11) 28... g5 $17 {[%emt 0:00:50]} 29. Qe4 {[%emt 0:03:27]} Kh8 {[%emt 0:00:23]} ({Better is} 29... Rc8 $17) 30. c4 $1 $11 {[%emt 0:00:22]} Rc8 {[%emt 0:04:18]} 31. Rc3 {[%emt 0:02:44]} Rcd8 {[%emt 0:00:07]} 32. Rd3 {[%emt 0:02:26]} Qh3 {[%emt 0:01:51][%cal Od8d6]} 33. Rxd8 {[%emt 0:01:11]} Rxd8 {[%emt 0:00:07]} 34. b3 {[%emt 0:00:45]} Qd7 {[%emt 0:04:07]} (34... h6 $11 {remains equal.}) 35. Bb2 $16 {[%emt 0:03:09]} Qd3 {[%emt 0:03:19]} 36. gxf4 {[%emt 0:14:23]} (36. Bxe5 $16 Qxe4 37. Rxe4) 36... Qxe4 $14 {[%emt 0:01:36]} 37. Rxe4 {[%emt 0:00:00]} exf4 {[%emt 0:00:32]} 38. Bxg7+ {[%emt 0:00:00]} (38. Be5 $5 {[%cal Re5c7]}) 38... Kxg7 $16 {[%emt 0:00:30][%mdl 4096] Endgame KR-KR} 39. Re5 {[%emt 0:00:00]} Kf6 {[%emt 0:00:30]} 40. Rb5 {[%emt 0:00:00]} Rd6 {[%emt 0:00:30]} 41. Kg2 {[%emt 0:19:39]} g4 {[%emt 0:30:30]} 42. h3 {[%emt 0:00:30][%cal Bh2h3,Bh3g4][%mdl 32]} h5 {[%emt 0:00:30]} 43. Rxh5 {[%emt 0:00:30] [#] Strongly threatening Rh6+.} Rd3 $2 {[%emt 0:00:30][%mdl 8192]} (43... gxh3+ $11 {and Black stays safe.} 44. Rxh3 Kg5) 44. hxg4 $18 {[%emt 0:00:30]} Rxb3 {[%emt 0:00:30]} 45. c5 {[%emt 0:00:30] Weighted Error Value: White=0.11 (very precise) /Black=0.36} 1-0

[Event "1st Sales Oliveira Masters 2022"]
[Site "Sales Oliveira"]
[Date "2022.06.12"]
[Round "8.4"]
[White "Lima, Darcy"]
[Black "Supi, Luis Paulo"]
[Result "1/2-1/2"]
[ECO "D02"]
[WhiteElo "2488"]
[BlackElo "2590"]
[Annotator "TA"]
[PlyCount "22"]
[EventDate "2022.05.30"]
[EventType "swiss"]
[EventCountry "BRA"]
[SourceTitle "playchess.com"]
[Source "ChessBase"]
[SourceQuality "1"]
[TimeControl "40/5400+30:1800+30"]

{[%evp 9,22,22,18,6,33,27,20,16,28,-39,0,0,55,-43,0]} 1. d4 {[%emt 0:00:02]} Nf6 {[%emt 0:01:04]} 2. Nf3 {[%emt 0:00:08]} d5 {[%emt 0:00:12]} 3. g3 {[%emt 0:01:18]} c5 {[%emt 0:02:29]} 4. Bg2 {[%emt 0:00:50]} cxd4 {[%emt 0:00:17]} 5. O-O {[%emt 0:00:35]} h6 {[%emt 0:01:09]} 6. Bf4 {[%emt 0:08:46] D02: 1 d4 d5 2 Nf3 sidelines, including 2...Nf6 3 g3 and 2...Nf6 3 Bf4.} Nbd7 {[%emt 0:15:23]} 7. Qxd4 {[%emt 0:05:57]} g5 {[%emt 0:00:33] [#]} 8. Bc1 $146 {[%emt 0:06:21]} ({Predecessor:} 8. Be5 Bg7 9. Nc3 O-O 10. Bxf6 Nxf6 11. Rad1 e6 12. Qd3 Qb6 13. Qb5 Nd7 14. Qb3 {0-1 (22) Sigeman,J (2120)-Salomon,J (2514) Helsingor 2019}) 8... Bg7 {[%emt 1:13:23]} 9. Be3 {[%emt 1:11:03]} (9. Nc3 $11) 9... Nb6 {[%emt 0:00:30]} 10. Qb4 {[%emt 0:00:30]} Nbd7 (10... Nc4 $11) 11. Qd4 {[%emt 0:00:30]} (11. h4 $14) 11... Nb8 {[%emt 0:01:00] An uneventful encounter.  Weighted Error Value: White=0.37/Black=0.23 (precise)} 1/2-1/2

[Event "1st Sales Oliveira Masters 2022"]
[Site "Sales Oliveira"]
[Date "2022.06.12"]
[Round "8.5"]
[White "Rodi, Luis Ernesto"]
[Black "Diamant, Andre"]
[Result "0-1"]
[ECO "B40"]
[WhiteElo "2351"]
[BlackElo "2539"]
[Annotator "TA"]
[PlyCount "66"]
[EventDate "2022.05.30"]
[EventType "swiss"]
[EventCountry "BRA"]
[SourceTitle "playchess.com"]
[Source "ChessBase"]
[SourceQuality "1"]
[TimeControl "40/5400+30:1800+30"]

{[%evp 9,66,22,37,39,40,23,34,39,39,36,39,22,25,19,23,6,14,0,7,6,21,-12,-14,-57,-49,-85,-7,-111,-111,-108,-102,-162,-183,-332,-328,-322,-298,-405,-372,-424,-431,-675,-652,-769,-623,-586,-522,-920,-898,-1387,-1359,-1481,-1414,-3629,-3094,-2969,-2748,-29988,-29987]} 1. e4 {[%emt 0:00:08]} c5 {[%emt 0:00:04]} 2. Nc3 {[%emt 0:00:16]} e6 {[%emt 0:01:46]} 3. Nf3 {[%emt 0:00:34]} a6 {[%emt 0:00:29]} 4. g3 {[%emt 0:00:13]} Nc6 {[%emt 0:03:34]} 5. Bg2 {[%emt 0:00:26]} Nge7 {[%emt 0:05:16]} 6. O-O {[%emt 0:02:08] B40: Sicilian: 2...e6, Unusual lines.} d6 {[%emt 0:04:11]} 7. d4 {[%emt 0:02:00]} cxd4 {[%emt 0:02:02]} 8. Nxd4 {[%emt 0:00:06] White is slightly better.} Nxd4 {[%emt 0:00:16]} 9. Qxd4 {[%emt 0:00:06]} Nc6 {[%emt 0:00:04]} 10. Qd3 {[%emt 0:00:50]} Be7 {[%emt 0:04:20]} 11. b3 {[%emt 0:03:11]} O-O {[%emt 0:00:51] [#]} 12. f4 $146 {[%emt 0:00:34]} ({Predecessor:} 12. Bb2 Qc7 13. a3 Re8 14. Nd1 b5 15. Ne3 Bb7 16. Rac1 Ne5 17. Qe2 Rac8 18. Rfd1 {½-½ (18) Schmitz,J (2319)-Muhren,B (2312) Germany 2010}) 12... Qc7 {[%emt 0:04:58]} 13. Bb2 {[%emt 0:03:01]} b5 {[%emt 0:01:34]} 14. a4 {[%emt 0:02:58]} b4 {[%emt 0:04:14]} 15. Ne2 {[%emt 0:13:56]} Bb7 {[%emt 0:04:45]} 16. g4 {[%emt 0:04:32]} e5 {[%emt 0:03:09]} 17. f5 {[%emt 0:06:51]} Bg5 {[%emt 0:06:07]} (17... a5 $17) 18. f6 {[%emt 0:01:14]} (18. Bc1 $11 {remains equal.} Qd8 19. Bxg5 Qxg5 20. f6) 18... Bxf6 $17 {[%emt 0:04:04] White is on the road to losing.} 19. Rxf6 {[%emt 0:00:34]} gxf6 {[%emt 0:00:02][%cal Bg7f6,Bf6f5,Bf5f4][%mdl 32]} 20. Qf3 {[%emt 0:01:17]} (20. Qd2 $17) 20... f5 $19 {[%emt 0:03:06]} 21. Ng3 {[%emt 0:07:45]} (21. gxf5 {keeps fighting.} Kh8 22. Rd1) 21... f4 {[%emt 0:02:29]} 22. Nf5 {[%emt 0:00:09][%cal Of3f4]} f6 {[%emt 0:00:45]} 23. Bf1 {[%emt 0:00:25]} Ne7 {[%emt 0:01:26]} 24. Bc4+ {[%emt 0:01:28]} Kh8 {[%emt 0:00:19]} 25. Nh6 {[%emt 0:00:29]} (25. Nxe7 $142 Qxe7 26. c3) 25... d5 {[%emt 0:05:32]} 26. exd5 {[%emt 0:03:00] [#]} Bxd5 $1 {[%emt 0:02:47][%mdl 512]} 27. Bxd5 {[%emt 0:00:08]} Qc5+ {[%emt 0:00:05]} 28. Kg2 {[%emt 0:00:27]} Nxd5 {[%emt 0:01:22]} 29. g5 {[%emt 0:00:06]} Qxc2+ {[%emt 0:04:06]} 30. Kh3 {[%emt 0:00:19]} e4 {[%emt 0:06:24]} 31. Qd1 {[%emt 0:02:46]} Qxb2 {[%emt 0:01:35]} 32. Qxd5 {[%emt 0:00:06]} Qxa1 {[%emt 0:00:51]} 33. gxf6 {[%emt 0:01:18]} Qxf6 {[%emt 0:00:18] Weighted Error Value: White=1.23/Black=0.14 (very precise)} 0-1

[Event "1st Sales Oliveira Masters 2022"]
[Site "Sales Oliveira"]
[Date "2022.06.12"]
[Round "9.1"]
[White "Diamant, Andre"]
[Black "Fier, Alexandr"]
[Result "1/2-1/2"]
[ECO "B31"]
[WhiteElo "2539"]
[BlackElo "2567"]
[Annotator "TA"]
[PlyCount "109"]
[EventDate "2022.05.30"]
[EventType "swiss"]
[EventCountry "BRA"]
[SourceTitle "playchess.com"]
[Source "ChessBase"]
[SourceQuality "1"]
[TimeControl "40/5400+30:1800+30"]

{[%evp 15,109,0,0,0,16,12,13,2,15,0,0,0,3,-7,27,-16,22,0,0,0,13,4,53,58,83,0,0,0,130,133,153,-291,-269,-283,0,-159,-143,-247,0,0,0,0,0,0,0,0,0,0,0,0,0,0,0,0,0,0,0,0,0,0,0,0,0,0,0,-4,-4,-4,-4,-8,-8,-8,-8,-8,-8,-8,-8,-8,-8,-8,-8,-8,-8,-8,-8,-8,-8,-8,-8,-8,-8,-8,-8,-11,-11,-51]} 1. e4 {[%emt 0:00:03]} c5 {[%emt 0:00:11]} 2. Nf3 {[%emt 0:00:05]} Nc6 {[%emt 0:00:03]} 3. Bb5 {[%emt 0:03:15]} g6 {[%emt 0:00:06]} 4. Bxc6 {[%emt 0:00:23]} bxc6 {[%emt 0:00:05]} 5. O-O {[%emt 0:00:10]} Bg7 {[%emt 0:00:02]} 6. Re1 {[%emt 0:01:43]} Nf6 {[%emt 0:00:20][%cal Bg8f6,Bf6d7,Bd7e5][%mdl 32]} 7. Nc3 {[%emt 0:06:31]} O-O {[%emt 0:03:05]} 8. h3 {[%emt 0:05:45]} d6 {[%emt 0:00:44]} 9. e5 {[%emt 0:08:31] B31: Sicilian: 2...Nc6 3 Bb5 g6.} Nd7 {[%emt 0:02:02][%cal Rd7e5]} 10. exd6 {[%emt 0:06:15]} exd6 {[%emt 0:00:04]} 11. d3 {[%emt 0:01:32]} Rb8 {[%emt 0:01:41]} 12. Bg5 {[%emt 0:04:01]} f6 {[%emt 0:00:09]} 13. Bf4 {[%emt 0:01:06]} Ne5 {[%emt 0:00:04] [#]} 14. b3 $146 {[%emt 0:05:46]} ({Predecessor:} 14. Rb1 Rb7 15. Ne4 Nf7 16. d4 g5 17. Bc1 cxd4 18. Nxd4 c5 19. Ne2 Re7 20. N4g3 {0-1 (43) Dubrawski,J-Woelfl,S ICCF corr 1992}) 14... g5 {[%emt 0:00:05]} 15. Bd2 {[%emt 0:01:39]} g4 {[%emt 0:08:01]} (15... Ng6 $5 {[%cal Rg5g4]}) 16. Nxe5 {[%emt 0:01:44]} fxe5 {[%emt 0:00:04]} 17. hxg4 {[%emt 0:00:29]} d5 {[%emt 0:00:45] aiming for ...Qh4.} (17... Rb7 $5 {[%cal Rd6d5]}) 18. g5 {[%emt 0:08:39]} Rb4 {[%emt 0:00:03]} (18... Rb7 $11 {should be considered.}) 19. Qh5 $1 $14 {[%emt 0:02:15]} Rg4 {[%emt 0:04:03][%cal Oe5e4]} 20. Rf1 {[%emt 0:10:46]} (20. Rac1 $16) 20... e4 $11 {[%emt 0:05:25]} 21. dxe4 {[%emt 0:02:07]} d4 {[%emt 0:00:03]} (21... dxe4 $11 {remains equal.} 22. Rad1 Bxc3 23. Bxc3 Qxg5 24. Qxg5+ Rxg5) 22. Na4 $16 {[%emt 0:06:12]} d3 {[%emt 0:04:05][%cal Bd4d3,Bd3c2][%mdl 32]} 23. Rac1 {[%emt 0:05:30]} (23. c3 $1 $16 {is forced if you want to stay better.}) 23... dxc2 $1 $19 {[%emt 0:02:24]} 24. Be3 {[%emt 0:00:59]} (24. Rxc2 $2 Qd3 25. Rc4 (25. g6 $2 hxg6 26. Qh2 Qxc2 $19) 25... Qxd2 $19) 24... Rxe4 $2 {[%emt 0:01:53]} (24... Bd4 $1 $19 {[%cal Rd4e3] Strongly threatening ...Bxe3.} 25. Nxc5 Bxc5) 25. g6 $2 {[%emt 0:12:25]} ({Better is} 25. Qe2 $1 $11) 25... hxg6 $1 $17 {[%emt 0:01:29]} 26. Qxc5 {[%emt 0:00:19]} (26. Qxg6 $17 {was the only defense.} Bf5 27. Qxc6) 26... Be5 $2 {[%emt 0:03:40] A strong pair of Bishops.} ({Black should try} 26... Qh4 $19 27. Qxc6 Kh7 28. Qxc2 (28. g3 $2 Qg4 $19) 28... Bh3 29. Qxe4 (29. gxh3 Rg4+ 30. hxg4 Qxg4+ 31. Kh1 Rf3) (29. Bxa7 Bxg2 30. f4 Qh1+ 31. Kf2 Rfxf4+ 32. Kg3 Qh3#) 29... Qxe4 30. gxh3 Rf3) 27. Qxc2 {[%emt 0:03:10] The position is equal.} Qh4 {[%emt 0:00:30][%csl Ge5][%cal Rh4h2]} 28. f4 $1 $36 {[%emt 0:00:58][%mdl 2048] White has good play.} Rfxf4 {[%emt 0:11:41]} ({Don't do} 28... Bxf4 29. Bxf4 Rexf4 30. Rxf4 Qxf4 31. Qc4+ (31. Qxg6+ Kh8 $11) 31... Qxc4 32. Rxc4 $14) 29. Rxf4 {[%emt 0:00:12] Chess con chili.} Bxf4 {[%emt 0:00:02]} 30. Bxf4 {[%emt 0:00:19]} Qxf4 {[%emt 0:00:01]} 31. Rf1 {[%emt 0:00:15]} (31. Qxc6 {leads to mate.} Qe3+ 32. Kf1 {[#]} Ba6+ $1 {[%mdl 512]}) 31... Qe3+ {[%emt 0:00:01]} 32. Qf2 {[%emt 0:01:23]} Bf5 {[%emt 0:00:03]} 33. Nc5 {[%emt 0:00:40]} Qxf2+ {[%emt 0:00:04]} 34. Kxf2 $11 {[%emt 0:00:47][%mdl 4096] Endgame KRB-KRN} Rf4+ {[%emt 0:00:10]} 35. Kg1 {[%emt 0:00:29]} Rd4 {[%emt 0:00:03]} 36. Rf2 {[%emt 0:01:01]} Kf7 {[%emt 0:00:14]} 37. Re2 {[%emt 0:00:32]} Rd1+ {[%emt 0:01:56]} 38. Kf2 {[%emt 0:00:05]} Rc1 {[%emt 0:00:02]} 39. Ne4 {[%emt 0:01:13]} Rd1 {[%emt 0:01:53]} 40. Rd2 {[%emt 0:00:34]} Rxd2+ {[%emt 0:00:26]} 41. Nxd2 {[%emt 0:30:01] KB-KN} Ke6 {[%emt 0:30:04]} 42. Ke3 {[%emt 0:00:20]} Kd5 {[%emt 0:00:02]} 43. g3 {[%emt 0:01:09]} Bc2 {[%emt 0:00:32]} 44. Nc4 {[%emt 0:00:35]} Bb1 {[%emt 0:00:16]} 45. Nd2 {[%emt 0:00:27]} Bf5 {[%emt 0:01:50]} 46. Nc4 {[%emt 0:00:13]} Kc5 {[%emt 0:00:13]} 47. Ne5 {[%emt 0:00:37]} Bb1 {[%emt 0:00:31]} 48. a3 {[%emt 0:00:23]} Kd5 {[%emt 0:00:08]} 49. Nd3 {[%emt 0:00:41]} c5 {[%emt 0:00:28]} 50. Nf4+ {[%emt 0:00:29]} Ke5 {[%emt 0:00:42]} 51. b4 {[%emt 0:00:12]} Kd6 {[%emt 0:02:09]} 52. bxc5+ {[%emt 0:00:28]} Kxc5 {[%emt 0:00:03]} 53. Kd2 {[%emt 0:00:17]} Kc4 {[%emt 0:00:18]} 54. Kc1 {[%emt 0:00:13]} Be4 {[%emt 0:00:03]} 55. Nxg6 {[%emt 0:00:11] Weighted Error Value: White=0.22 (precise) /Black=0.21 (precise)} 1/2-1/2

[Event "1st Sales Oliveira Masters 2022"]
[Site "Sales Oliveira"]
[Date "2022.06.12"]
[Round "9.2"]
[White "Supi, Luis Paulo"]
[Black "Rodi, Luis Ernesto"]
[Result "1-0"]
[ECO "C02"]
[WhiteElo "2590"]
[BlackElo "2351"]
[Annotator "TA"]
[PlyCount "45"]
[EventDate "2022.05.30"]
[EventType "swiss"]
[EventCountry "BRA"]
[SourceTitle "playchess.com"]
[Source "ChessBase"]
[SourceQuality "1"]
[TimeControl "40/5400+30:1800+30"]

{[%evp 11,45,-10,-10,-32,-22,-32,-15,-37,-35,-72,-10,-41,-32,-45,-51,-45,26,0,0,0,41,31,18,25,206,210,852,846,1058,1057,1045,988,1523,1501,29998,29999]} 1. e4 {[%emt 0:00:02]} e6 {[%emt 0:00:18]} 2. d4 {[%emt 0:00:08]} d5 {[%emt 0:00:06]} 3. e5 {[%emt 0:00:03]} c5 {[%emt 0:00:08]} 4. c3 {[%emt 0:00:03]} Qb6 {[%emt 0:00:05]} 5. Nf3 {[%emt 0:00:07]} Nc6 {[%emt 0:00:06]} 6. Bd3 {[%emt 0:00:32]} cxd4 {[%emt 0:00:27]} 7. O-O $1 {[%emt 0:00:04][%mdl 4] outshines the older 7.cxd4. C02: French: Advance Variation.} Bd7 {[%emt 0:00:10]} 8. Re1 {[%emt 0:00:05]} Nge7 {[%emt 0:00:09]} 9. h4 {[%emt 0:00:27] The position is equal.} a6 {[%emt 0:00:51]} 10. a3 {[%emt 0:05:17]} h6 {[%emt 0:01:16]} (10... Rc8 $17) 11. h5 {[%emt 0:02:56]} Rc8 {[%emt 0:01:59]} 12. b4 {[%emt 0:00:43]} dxc3 {[%emt 0:02:22]} 13. Nxc3 {[%emt 0:01:17] [#]} Nd4 $146 {[%emt 0:01:54]} ({Better is} 13... Nxb4 $1 $15 14. Na4 (14. Be3 Qd8) 14... Bxa4 15. Qxa4+ Nbc6) ({Predecessor:} 13... Nxb4 14. Na4 Bxa4 15. Qxa4+ Nbc6 16. Rb1 Qc7 17. Bd2 Qd7 18. Qg4 Rc7 19. Nh4 g5 20. hxg6 fxg6 21. Nxg6 Nxg6 22. Bxg6+ {1-0 (44) Nemeth,M (2451)-Mica,M (2334) Corte 2022}) 14. Bb2 {[%emt 0:05:20] Nxd4 is the strong threat.} Nxf3+ {[%emt 0:15:15]} 15. Qxf3 {[%emt 0:00:07]} Bc6 {[%emt 0:09:18]} 16. Qg4 {[%emt 0:02:58]} Rg8 {[%emt 0:01:33]} 17. Rac1 {[%emt 0:04:32][%cal Ba1c1,Bc1c8,Bc8d8][%mdl 32]} g6 $2 {[%emt 0:04:51] This move loses the game for Black.} (17... Bd7 $11 {and Black has nothing to worry.}) 18. hxg6 $18 {[%emt 0:00:23]} Nxg6 {[%emt 0:00:09] [#]} (18... Kd7 19. Red1 Rg7) 19. Nxd5 $1 {[%emt 0:00:36][%mdl 512]} Bxd5 {[%emt 0:01:07]} (19... h5 20. Nf6+) 20. Rxc8+ {[%emt 0:00:11]} Kd7 {[%emt 0:00:05]} 21. Bd4 {[%emt 0:04:58]} Ne7 {[%emt 0:01:47]} 22. Bxb6 {[%emt 0:00:16] Rd8+ would kill now.} Rxg4 {[%emt 0:00:11]} 23. Rd8+ {[%emt 0:00:05] Weighted Error Value: White=0.13 (very precise) /Black=0.73} 1-0